bitfinex/quotes_ETHUSD_20220218
["timestamp","ask_amount","ask_price","bid_price","bid_amount"]
[1645154271076,0.98357285,2910.3,2910.1,0.00698341]
[1645154271483,0.98357285,2910.3,2909.6,1.3782]
[1645154271484,0.312604,2910.2,2909.8,0.00371765]
[1645154271679,0.312604,2910.2,2910.1,0.00326579]
[1645154272282,0.98357285,2910.3,2910.1,0.00326579]
[1645154272482,3.4,2910.6,2910.1,1.14348216]
[1645154272739,3.4,2910.6,2910.2,1.14393402]
[1645154272938,3.4,2910.6,2910.3,1.14393402]
[1645154273138,3.4,2910.6,2910.4,1.14021637]
[1645154273338,3.4,2910.6,2910.4,1.44021637]
[1645154273339,3.39589988,2910.6,2910.4,1.44021637]
[1645154273540,3.39589988,2910.6,2910.5,0.85912]
[1645154273841,3.39589988,2910.6,2910.5,0.86283765]
[1645154274043,3.39589988,2910.6,2910.5,2.00281363]
[1645154274939,3.39589988,2910.6,2910.5,1.14369363]
[1645154276143,3.39589988,2910.6,2910.5,2.00282363]
[1645154277194,3.39589988,2910.6,2910.5,3.09782363]
[1645154277491,3.39589988,2910.6,2910.5,4.26942363]
[1645154279493,3.39589988,2910.6,2910.5,2.96942363]
[1645154280523,3.39589988,2910.6,2910.5,2.79782363]
[1645154281527,1.83388746,2910.6,2910.5,2.79782363]
[1645154283329,1.83388746,2910.6,2910.5,4.09782363]
[1645154284578,0.65636379,2911.6,2910.6,5.5]
[1645154284881,3.5,2912.0,2910.6,5.5]
[1645154284882,0.34252693,2911.5,2911.0,0.85876]
[1645154285079,0.34252693,2911.4,2911.1,1.63497598]
[1645154285278,0.34252693,2911.3,2911.2,1.43997598]
[1645154285478,0.34252693,2911.3,2911.2,1.93497598]
[1645154285879,0.34252693,2911.3,2911.2,2.79385598]
[1645154288328,3.74252693,2911.3,2911.2,2.79385598]
[1645154289729,3.74252693,2911.3,2911.2,3.09385598]
[1645154289931,3.4,2911.3,2911.2,3.79385598]
[1645154290130,3.4,2911.3,2911.2,2.79385598]
[1645154290332,3.73416247,2911.3,2911.2,2.49385598]
[1645154290731,3.4,2911.3,2911.2,2.49385598]
[1645154290930,3.73407486,2911.3,2911.2,2.49385598]
[1645154291579,3.73407486,2911.3,2911.2,2.79385598]
[1645154296428,3.74854496,2911.3,2911.2,2.79385598]
[1645154297332,3.74854496,2911.3,2911.2,2.49385598]
[1645154297929,3.74854496,2911.3,2911.2,2.79385598]
[1645154298129,3.4144701,2911.3,2911.2,2.79385598]
[1645154298530,3.74825318,2911.3,2911.2,2.79385598]
[1645154298731,3.4144701,2911.3,2911.2,3.09385598]
[1645154298975,3.4144701,2911.3,2911.2,4.09385598]
[1645154299175,3.4144701,2911.3,2911.2,3.79385598]
[1645154299374,3.4144701,2911.3,2911.2,4.09385598]
[1645154299574,3.4144701,2911.3,2911.2,3.79385598]
[1645154299777,3.4144701,2911.3,2911.2,2.79385598]
[1645154300180,3.4144701,2911.3,2911.2,3.09385598]
[1645154300378,3.4144701,2911.3,2911.2,4.09385598]
[1645154301479,1.85278029,2911.3,2911.2,4.09385598]
[1645154303528,1.85278029,2911.3,2911.2,2.79385598]
[1645154307687,1.85278029,2911.3,2911.2,3.09385598]
[1645154307880,1.85278029,2911.3,2911.2,4.09385598]
[1645154309881,1.85278029,2911.3,2911.2,3.09385598]
[1645154310124,1.85278029,2911.3,2911.2,2.79385598]
[1645154310523,1.85278029,2911.3,2911.2,2.49385598]
[1645154310723,2.21581705,2911.3,2911.2,2.79385598]
[1645154313873,1.85278029,2911.3,2911.2,2.79385598]
[1645154314771,2.21617738,2911.3,2911.2,2.79385598]
[1645154321575,1.85278029,2911.3,2911.2,2.79385598]
[1645154321776,2.21708616,2911.3,2911.2,3.09385598]
[1645154321976,2.21721739,2911.3,2911.2,3.09385598]
[1645154322279,2.21721529,2911.3,2911.2,3.09385598]
[1645154322482,1.85278029,2911.3,2911.2,3.09385598]
[1645154322681,2.21721372,2911.3,2911.2,3.09385598]
[1645154322878,1.85278029,2911.3,2911.2,3.09385598]
[1645154323278,2.21725813,2911.3,2911.2,3.04788265]
[1645154323478,1.85278029,2911.3,2911.2,3.04788265]
[1645154324480,2.21731168,2911.3,2911.2,2.74788265]
[1645154324683,2.21733182,2911.3,2911.2,2.74788265]
[1645154324980,2.21733182,2911.3,2911.2,2.44788265]
[1645154325422,2.21733182,2911.3,2911.2,2.74788265]
[1645154325628,2.21733182,2911.3,2911.2,1.09400265]
[1645154325826,0.00148773,2911.2,2910.7,0.00371765]
[1645154326023,0.65636379,2911.1,2910.5,1.10028119]
[1645154326222,0.65636379,2911.1,2910.6,1.09656354]
[1645154326427,1.02240305,2911.2,2910.7,1.09656354]
[1645154326626,1.02240305,2911.2,2910.8,1.09656354]
[1645154326627,0.36455153,2911.0,2910.8,1.09656354]
[1645154327027,0.36455153,2910.9,2910.7,0.85912]
[1645154327229,0.36455153,2910.8,2910.7,0.85912]
[1645154327429,1.04838812,2910.9,2910.7,1.94948872]
[1645154327627,1.04838812,2910.9,2910.5,0.00371765]
[1645154327628,0.36938264,2910.8,2910.5,0.00371765]
[1645154327828,0.36938264,2910.8,2910.5,1.09413036]
[1645154328028,0.36938264,2910.8,2910.1,0.3]
[1645154328029,3.5,2910.7,2910.3,1.09413036]
[1645154328232,3.5,2910.7,2910.4,1.09097343]
[1645154328428,0.36952627,2910.6,2910.5,0.00371765]
[1645154328628,0.00187936,2910.4,2910.3,1.09092007]
[1645154328877,0.00187936,2910.4,2910.3,1.09463772]
[1645154329677,0.01634946,2910.4,2910.3,1.09463772]
[1645154329880,0.38587573,2910.4,2910.3,1.09463772]
[1645154330884,0.38587573,2910.4,2910.3,1.09349121]
[1645154332182,3.78587573,2910.4,2910.3,1.09349121]
[1645154332831,3.78587573,2910.4,2910.3,0.00257114]
[1645154333031,3.78587573,2910.4,2910.2,0.00306673]
[1645154333232,0.36952627,2910.3,2910.2,0.00306673]
[1645154333833,0.38399637,2910.3,2910.0,0.00257114]
[1645154334034,0.36952627,2910.2,2910.0,1.11240333]
[1645154334234,0.0144701,2910.3,2910.1,0.00563788]
[1645154334435,0.34631135,2910.2,2910.1,0.00563788]
[1645154334834,0.36078145,2910.2,2910.1,1.11486025]
[1645154335235,0.36078145,2910.2,2910.1,1.11179351]
[1645154335434,0.36078145,2910.2,2910.1,0.00257114]
[1645154335636,0.36078145,2910.2,2910.1,1.11179351]
[1645154336238,0.36078145,2910.2,2910.0,0.00306681]
[1645154336239,5.5,2910.0,2909.2,2.86913213]
[1645154336486,5.5,2910.0,2909.7,8.06e-05]
[1645154336487,4.5,2909.9,2909.7,8.06e-05]
[1645154336684,24.279443,2909.8,2908.8,0.65456481]
[1645154336884,24.279443,2909.8,2908.9,0.00364499]
[1645154336885,20.1,2909.6,2908.9,0.00364499]
[1645154337084,0.01203944,2909.1,2908.9,0.00364499]
[1645154337286,20.1,2909.4,2908.9,0.00364499]
[1645154337287,0.85986,2909.4,2908.9,0.00364499]
[1645154337489,20.1,2909.7,2909.0,0.93037758]
[1645154337490,0.87771699,2909.6,2909.0,0.93037758]
[1645154337697,0.65636379,2909.8,2909.1,0.00364499]
[1645154337883,0.0144701,2909.6,2909.1,1.03483499]
[1645154338085,0.0144701,2909.6,2909.2,0.00364499]
[1645154338686,0.0144701,2909.6,2909.5,0.90701219]
[1645154338883,0.0144701,2909.6,2909.1,0.85936]
[1645154339083,0.0144701,2909.6,2909.3,0.00190154]
[1645154339482,0.0144701,2909.6,2909.3,0.00554653]
[1645154339984,0.0144701,2909.6,2909.3,0.00364499]
[1645154340231,0.0144701,2909.6,2909.3,0.00689567]
[1645154341232,0.0144701,2909.6,2909.0,0.30364499]
[1645154341438,0.0144701,2909.6,2909.3,0.00324027]
[1645154342230,0.0144701,2909.6,2909.2,0.00364499]
[1645154344674,3.4144701,2909.6,2909.2,0.00364499]
[1645154344974,3.4144701,2909.6,2909.3,0.0032377]
[1645154345873,3.4144701,2909.6,2909.2,0.00364499]
[1645154346275,3.4144701,2909.6,2909.3,0.00323767]
[1645154347082,3.4144701,2909.6,2909.2,0.00364499]
[1645154347279,3.4144701,2909.6,2909.3,0.00323767]
[1645154348527,3.4144701,2909.6,2909.2,0.00364499]
[1645154348728,3.4144701,2909.6,2909.3,0.00323767]
[1645154349629,3.4144701,2909.6,2909.2,0.00364499]
[1645154349828,3.5,2909.5,2909.3,0.00301136]
[1645154350231,0.85962,2909.5,2909.3,0.00301136]
[1645154350833,0.85962,2909.5,2908.9,0.00364499]
[1645154350834,0.0144701,2909.5,2908.9,0.00364499]
[1645154351032,0.0144701,2909.5,2909.3,0.00301139]
[1645154351480,0.8740701,2909.5,2909.3,0.00301139]
[1645154351880,0.8740701,2909.5,2908.9,0.00364499]
[1645154352086,0.8740701,2909.5,2909.3,0.00301139]
[1645154352087,0.0144701,2909.5,2909.3,0.00301139]
[1645154353182,0.0144701,2909.5,2908.9,0.00364499]
[1645154353483,0.0144701,2909.5,2909.3,0.0032377]
[1645154354285,0.0144701,2909.5,2908.9,0.00364499]
[1645154354682,0.0144701,2909.5,2909.3,0.0032377]
[1645154355528,0.0144701,2909.5,2908.9,0.00364499]
[1645154355724,0.0144701,2909.5,2909.3,0.00188623]
[1645154356835,0.0144701,2909.5,2909.1,0.00364499]
[1645154357029,0.0144701,2909.5,2909.3,0.00188623]
[1645154357830,0.0144701,2909.5,2909.1,0.00364499]
[1645154358033,0.0144701,2909.5,2908.9,1.29328842]
[1645154358231,0.0144701,2909.5,2909.3,0.00188623]
[1645154358633,0.0144701,2909.5,2909.3,0.00069557]
[1645154358634,0.8740601,2909.5,2909.3,0.00069557]
[1645154359086,0.8740601,2909.5,2908.6,0.00364499]
[1645154359588,0.85964,2909.4,2908.6,0.00364499]
[1645154359785,0.85986,2908.9,2908.6,0.00364499]
[1645154359984,0.85986,2908.9,2908.0,10.41009398]
[1645154359985,0.8743301,2908.9,2908.4,0.00364499]
[1645154360184,0.8743301,2908.9,2908.1,0.99409768]
[1645154360385,0.8743301,2908.9,2908.2,0.00364499]
[1645154360585,0.8743301,2908.9,2908.5,0.00188672]
[1645154360788,5.2341901,2908.9,2908.5,0.00188672]
[1645154360990,0.85987,2908.8,2908.5,0.00188672]
[1645154361588,0.85987,2908.8,2908.1,0.00364499]
[1645154361589,3.5,2908.7,2908.2,0.99069518]
[1645154361789,5.21984,2908.7,2908.3,0.99434017]
[1645154361990,0.85992,2908.6,2908.5,0.00188672]
[1645154362827,0.85992,2908.6,2908.3,0.00364499]
[1645154363029,1.1413786,2908.5,2908.3,0.00364499]
[1645154363229,5.3512786,2908.5,2908.3,0.00364499]
[1645154363430,3.5,2908.4,2908.3,0.00364499]
[1645154363635,3.5,2908.4,2908.1,0.00364499]
[1645154363830,3.6719,2908.4,2908.1,0.00364499]
[1645154364029,3.6863701,2908.4,2908.1,0.00364499]
[1645154364233,0.86014,2908.3,2908.1,0.00364499]
[1645154364430,3.5,2908.2,2908.1,0.00364499]
[1645154365132,20.1,2908.1,2907.9,0.00364499]
[1645154365337,20.1,2908.1,2907.4,0.5]
[1645154365338,5.5,2907.9,2907.4,0.5]
[1645154365632,0.25,2907.9,2907.8,0.00361042]
[1645154365931,1.19255886,2907.9,2907.6,0.01290157]
[1645154366380,0.96419453,2907.3,2906.8,10.1199044]
[1645154366581,0.96419453,2907.3,2907.2,0.0129026]
[1645154366780,3.5,2907.8,2907.2,0.0129026]
[1645154366982,0.0144701,2907.8,2907.2,0.0129026]
[1645154367287,0.0144701,2907.8,2907.3,0.98936544]
[1645154367492,0.0144701,2907.8,2906.8,10.11629398]
[1645154367493,2.40702414,2907.3,2906.8,10.11629398]
[1645154367686,2.40702414,2907.3,2906.9,0.00359274]
[1645154367982,3.5,2907.2,2906.9,0.01649599]
[1645154368185,3.28178424,2907.3,2906.9,0.01649599]
[1645154368386,1.0,2907.2,2906.9,0.01649599]
[1645154368584,0.86051,2907.1,2906.9,0.01649599]
[1645154368783,0.86051,2907.1,2906.9,0.00359274]
[1645154368985,0.8749801,2907.1,2906.9,0.00359274]
[1645154370230,0.8749801,2907.1,2906.9,0.00681578]
[1645154370231,1.7354701,2907.1,2906.9,0.00681578]
[1645154370833,0.8749601,2907.1,2906.9,0.00681578]
[1645154371032,5.5,2907.0,2906.8,4.57469132]
[1645154371246,5.66353354,2906.9,2906.8,0.00357552]
[1645154371438,5.66353354,2906.9,2906.1,0.00357552]
[1645154371439,26.2719,2906.9,2906.1,0.00357552]
[1645154371653,23.6,2906.8,2906.4,0.01220451]
[1645154371840,1.0,2906.7,2906.4,0.01220451]
[1645154372037,0.86067,2906.6,2906.4,0.01220451]
[1645154372339,2.72134,2906.7,2905.5,0.00357552]
[1645154372340,1.05385567,2906.7,2905.9,1.01449222]
[1645154372736,1.05385567,2906.7,2906.0,0.00357552]
[1645154373139,1.05385567,2906.7,2905.7,0.17547552]
[1645154373339,1.05385567,2906.7,2905.7,0.1719]
[1645154373537,1.05385567,2906.7,2905.8,0.00357552]
[1645154373739,1.2020701,2906.9,2905.8,0.00357552]
[1645154373740,1.2020701,2906.9,2905.9,0.1719]
[1645154373984,0.0144701,2906.9,2906.0,0.495]
[1645154374181,0.0144701,2906.9,2906.1,0.1719]
[1645154374380,0.0144701,2906.9,2906.2,3.07526]
[1645154374580,0.0144701,2906.9,2906.3,0.4719]
[1645154374779,0.0144701,2906.9,2906.4,1.05824639]
[1645154374980,0.0144701,2906.9,2906.5,0.17547552]
[1645154375190,0.0144701,2906.9,2906.6,0.00357552]
[1645154375580,0.0144701,2906.9,2906.4,0.00321627]
[1645154375982,0.0144701,2906.9,2906.0,0.00357552]
[1645154376284,0.0144701,2906.9,2906.5,0.0032162]
[1645154377087,0.0144701,2906.9,2906.0,0.00357552]
[1645154377286,0.0144701,2906.9,2906.0,0.17547552]
[1645154377486,0.0144701,2906.9,2906.6,0.00321617]
[1645154378331,0.0144701,2906.9,2906.2,0.17547552]
[1645154378332,0.0144701,2906.9,2906.3,0.00357552]
[1645154378734,3.5,2907.2,2907.0,0.28480445]
[1645154378932,0.88793443,2907.1,2907.0,0.28837997]
[1645154379135,4.38793443,2907.1,2907.0,0.28480445]
[1645154379333,4.38793443,2907.1,2907.0,0.28837984]
[1645154379536,0.88793443,2907.1,2907.0,0.28837984]
[1645154380936,4.38793443,2907.1,2907.0,0.28837984]
[1645154381581,0.88793443,2907.1,2907.0,0.28837984]
[1645154385427,2.40702414,2907.3,2907.0,0.28837984]
[1645154385632,2.40702414,2907.3,2907.1,0.00357539]
[1645154386532,3.58966413,2907.3,2907.1,0.00357539]
[1645154386934,2.40702414,2907.3,2907.1,0.00357539]
[1645154387436,2.40702414,2907.3,2907.1,0.49857539]
[1645154390588,2.40702414,2907.3,2907.1,1.35863539]
[1645154390987,2.40702414,2907.3,2907.1,2.21870539]
[1645154393030,2.40702414,2907.3,2907.1,0.00357539]
[1645154394933,1.46140208,2907.3,2907.1,0.00357539]
[1645154398597,0.25,2907.9,2907.3,0.10234723]
[1645154399392,0.53322174,2907.8,2907.4,0.00357539]
[1645154399591,1.11973949,2907.8,2907.3,0.10234723]
[1645154399794,1.11973949,2907.8,2907.4,0.00357539]
[1645154399992,0.53353788,2907.7,2907.3,0.10234723]
[1645154400234,0.53353788,2907.7,2907.4,0.00357539]
[1645154400533,0.53353788,2907.7,2907.3,0.10234723]
[1645154400734,1.97992949,2907.8,2907.4,0.00357539]
[1645154400935,1.11973949,2907.8,2907.3,0.10234723]
[1645154401139,4.51973949,2907.8,2907.4,0.00357539]
[1645154401338,4.51973949,2907.8,2907.3,0.10234723]
[1645154401539,4.51973949,2907.8,2907.4,0.00357539]
[1645154401739,4.51973949,2907.8,2907.3,0.10234723]
[1645154401938,4.51973949,2907.8,2907.4,0.00357539]
[1645154402139,4.51973949,2907.8,2907.3,0.10234723]
[1645154402341,5.37992949,2907.8,2907.4,0.00357539]
[1645154402540,5.37992949,2907.8,2907.3,0.10234723]
[1645154402740,5.37992949,2907.8,2907.4,0.00357539]
[1645154402941,2.11025,2907.7,2907.4,0.00357539]
[1645154403144,28.17715,2907.7,2907.4,0.00357539]
[1645154403342,20.1,2907.6,2907.4,0.00357539]
[1645154403542,5.5,2907.4,2907.3,2.262e-05]
[1645154403746,6.53242,2907.4,2907.3,0.00356189]
[1645154403987,6.83242,2907.4,2907.3,2.262e-05]
[1645154404186,7.83242,2907.4,2907.3,2.262e-05]
[1645154404592,4.0,2907.3,2907.0,0.23836634]
[1645154404792,1.86051,2907.2,2907.1,0.00352182]
[1645154405792,1.86051,2907.2,2907.0,0.17015088]
[1645154405793,23.6,2907.1,2907.0,0.17015088]
[1645154405994,23.6,2907.1,2905.7,0.65456481]
[1645154405995,0.86071,2906.8,2905.7,0.65456481]
[1645154406191,4.0,2906.9,2905.8,0.00350433]
[1645154406192,3.0055386,2906.7,2905.8,0.00350433]
[1645154406501,1.06902811,2905.9,2905.8,0.00350433]
[1645154408731,3.5,2906.3,2905.8,0.00350433]
[1645154409334,0.86065,2906.2,2905.8,0.00350433]
[1645154409534,3.5,2906.1,2905.8,0.00350433]
[1645154409735,5.2217,2906.1,2905.8,0.00350433]
[1645154410333,0.87191619,2906.0,2905.8,0.00350433]
[1645154410535,6.95446619,2906.0,2905.8,0.00350433]
[1645154410734,3.5,2905.9,2905.8,0.00350433]
[1645154411135,0.87191619,2906.0,2905.8,0.00321146]
[1645154411995,0.87191619,2906.0,2905.4,0.00350433]
[1645154412193,0.87191619,2906.0,2905.3,0.65456481]
[1645154412395,0.87191619,2906.0,2905.8,0.00321146]
[1645154412592,4.27191619,2906.0,2905.8,0.00321146]
[1645154412792,3.4,2906.0,2905.8,0.00321146]
[1645154413292,3.4,2906.0,2905.6,0.00350433]
[1645154413492,3.4,2906.0,2905.8,0.00321146]
[1645154414192,3.4,2906.0,2905.8,0.00671579]
[1645154414496,3.4,2906.0,2905.8,0.00350433]
[1645154414691,3.4,2906.0,2905.8,0.00321146]
[1645154415740,3.4,2906.0,2905.6,0.00350433]
[1645154415938,3.4,2906.0,2905.8,0.00321146]
[1645154416944,3.4,2906.0,2905.6,0.00350433]
[1645154417149,3.4,2906.0,2905.8,0.00321146]
[1645154417646,5.1215,2906.0,2905.8,0.00321146]
[1645154418046,5.1215,2906.0,2905.6,0.00350433]
[1645154418246,5.1215,2906.0,2905.8,0.00321146]
[1645154418883,4.26074,2906.0,2905.8,0.00321146]
[1645154419082,3.5,2905.9,2905.8,0.00321146]
[1645154419281,4.26074,2906.0,2905.3,0.00350433]
[1645154419480,1.06837226,2905.7,2905.3,0.01635211]
[1645154419980,1.06837226,2905.7,2905.3,0.01284778]
[1645154420181,1.06837226,2905.7,2905.3,0.87349778]
[1645154420379,1.06837226,2905.7,2905.4,0.86413433]
[1645154420581,3.4,2906.0,2905.4,0.86413433]
[1645154420780,3.4,2906.0,2905.5,0.88159153]
[1645154420982,3.4,2906.0,2905.6,0.00350433]
[1645154421283,3.4,2906.0,2905.4,0.00321172]
[1645154421284,5.5,2905.9,2905.4,0.00321172]
[1645154421496,3.5,2905.8,2905.6,0.00347058]
[1645154421688,3.5,2905.8,2905.5,0.87550357]
[1645154421689,21.96077,2905.8,2905.5,0.87550357]
[1645154421886,21.96077,2905.8,2904.6,11.3828]
[1645154421887,0.60241969,2905.7,2905.6,0.00347058]
[1645154422291,1.48530312,2905.7,2904.7,0.8554806]
[1645154422634,1.48530312,2905.7,2904.8,0.00347058]
[1645154422635,0.86105,2905.2,2904.8,0.00347058]
[1645154422836,0.86105,2905.2,2904.8,0.8554806]
[1645154423034,0.86105,2905.2,2904.3,0.00347058]
[1645154423232,0.86105,2905.2,2905.1,0.0031033]
[1645154423433,2.64814273,2905.2,2905.1,0.0031033]
[1645154423634,0.92602273,2905.2,2905.1,0.0031033]
[1645154423833,0.86088,2905.3,2905.1,0.0031033]
[1645154424037,0.86088,2905.3,2904.9,0.85084971]
[1645154424338,0.86088,2905.3,2905.0,0.85739897]
[1645154424536,0.86088,2905.3,2905.0,0.00310333]
[1645154424735,0.86088,2905.3,2905.1,0.00347058]
[1645154424944,0.86088,2905.3,2905.0,0.00310333]
[1645154425139,4.36088,2905.3,2905.0,0.00310333]
[1645154425338,4.36088,2905.3,2904.9,0.8503088]
[1645154425540,4.36088,2905.3,2903.7,12.8673895]
[1645154425541,0.86102,2905.2,2905.0,0.00310333]
[1645154425739,0.861,2905.1,2905.0,0.00310333]
[1645154426588,0.861,2905.1,2904.2,0.00347058]
[1645154426795,0.861,2905.1,2904.9,0.00303692]
[1645154426796,1.72201,2905.1,2904.9,0.00303692]
[1645154427194,0.861,2905.1,2904.9,0.00303692]
[1645154427598,4.78545922,2905.4,2904.9,0.00303692]
[1645154427599,0.86092,2905.2,2904.9,0.00303692]
[1645154427791,0.86092,2905.2,2904.6,0.84925953]
[1645154427792,0.86095,2905.2,2904.6,0.84925953]
[1645154427991,0.86095,2905.2,2904.9,0.00168195]
[1645154428492,0.86095,2905.2,2904.9,0.00515253]
[1645154428690,0.861,2905.1,2904.9,0.00168195]
[1645154428890,0.861,2905.1,2904.5,0.84899142]
[1645154429090,0.861,2905.1,2904.9,0.00168192]
[1645154429294,2.14637922,2905.4,2904.9,0.00168192]
[1645154429691,0.86089,2905.3,2904.9,0.00168192]
[1645154430138,0.86089,2905.3,2904.7,0.00347058]
[1645154430337,0.86096,2905.2,2905.0,0.00173113]
[1645154430537,0.86089,2905.3,2905.0,0.00173113]
[1645154430938,0.86089,2905.3,2905.0,0.00520171]
[1645154431138,0.86089,2905.3,2905.0,0.00173113]
[1645154431337,0.86089,2905.3,2904.7,0.84879878]
[1645154431540,0.86089,2905.3,2905.0,0.00308386]
[1645154431943,0.86089,2905.3,2905.0,0.00655444]
[1645154432142,0.86089,2905.3,2905.0,0.03832297]
[1645154432543,0.86089,2905.3,2905.0,0.03523911]
[1645154433547,4.36089,2905.3,2905.0,0.03523911]
[1645154433984,0.86089,2905.3,2905.0,0.03822635]
[1645154434283,1.28545922,2905.4,2905.0,0.03822635]
[1645154434487,1.8064,2905.7,2905.0,0.03822635]
[1645154434488,1.6343,2905.7,2905.0,0.03822635]
[1645154434885,1.6343,2905.7,2905.0,0.03523911]
[1645154435289,5.0343,2905.7,2905.2,0.00298712]
[1645154435484,5.89508,2905.7,2905.2,0.00298712]
[1645154435687,0.84368864,2905.3,2905.2,0.00298712]
[1645154436090,0.84368864,2905.3,2905.0,0.03523911]
[1645154436490,0.84368864,2905.3,2905.1,0.00298718]
[1645154437292,0.84368864,2905.3,2905.0,0.03523911]
[1645154437737,1.70459864,2905.3,2905.1,0.00303901]
[1645154438536,1.70459864,2905.3,2905.0,0.03523911]
[1645154438736,1.70459864,2905.3,2905.1,0.00303901]
[1645154439541,1.70459864,2905.3,2905.1,0.00051807]
[1645154439737,1.70459864,2905.3,2905.0,0.03523911]
[1645154439738,0.86103,2905.2,2905.0,0.03523911]
[1645154439941,1.72206,2905.2,2905.1,0.00303901]
[1645154440337,2.58309,2905.2,2905.1,0.00303901]
[1645154440938,2.58309,2905.2,2905.0,0.03523911]
[1645154441382,2.58309,2905.2,2905.0,0.03686897]
[1645154442091,2.58309,2905.2,2905.0,0.03523911]
[1645154442293,0.861,2905.1,2904.9,0.03557321]
[1645154442491,1.72202,2905.1,2905.0,0.00162986]
[1645154443297,1.72202,2905.1,2904.9,0.03557321]
[1645154443690,1.72202,2905.1,2904.9,0.03855586]
[1645154444089,0.861,2905.1,2904.9,0.03855586]
[1645154444490,0.861,2905.1,2904.9,0.03557321]
[1645154444890,0.861,2905.1,2904.9,0.03860353]
[1645154445143,3.5,2905.0,2904.9,0.03860353]
[1645154445341,0.861,2905.1,2904.9,0.03860353]
[1645154445644,0.861,2905.1,2904.9,0.03557321]
[1645154446043,0.861,2905.1,2904.9,0.03860353]
[1645154446443,4.261,2905.1,2904.9,0.03860353]
[1645154447046,4.261,2905.1,2904.9,0.03557321]
[1645154447250,4.261,2905.1,2904.9,0.00303032]
[1645154447251,5.12197,2905.1,2904.9,0.00303032]
[1645154447648,4.10266741,2905.0,2904.9,0.00303032]
[1645154448048,5.12197,2905.1,2904.9,0.00303032]
[1645154448252,5.12197,2905.1,2904.8,0.00347058]
[1645154448253,0.86104,2905.0,2904.8,0.00347058]
[1645154448450,1.72208,2905.0,2904.8,0.00298148]
[1645154448648,0.86104,2905.0,2904.8,0.00298148]
[1645154448887,4.36104,2905.0,2904.8,0.00298148]
[1645154449091,6.08315,2905.0,2904.8,0.00298148]
[1645154449295,2.58315,2905.0,2904.7,0.85188084]
[1645154449592,6.08315,2905.0,2904.8,0.85486235]
[1645154449793,0.8914311,2904.9,2904.8,0.85833293]
[1645154449993,1.7524511,2904.9,2904.8,0.85833293]
[1645154450593,1.7524511,2904.9,2904.8,0.85605197]
[1645154450797,5.2524511,2904.9,2904.8,0.00347058]
[1645154450992,5.2524511,2904.9,2904.8,0.85258139]
[1645154450993,1.7524511,2904.9,2904.8,0.85258139]
[1645154451393,1.7524511,2904.9,2904.8,0.85605197]
[1645154451595,0.8914311,2904.9,2904.8,0.85605197]
[1645154452635,1.51161738,2904.9,2904.8,0.00347058]
[1645154452834,1.51161738,2904.9,2904.7,0.00298484]
[1645154453035,0.8914311,2904.9,2904.4,0.83970331]
[1645154453237,0.8914311,2904.9,2904.7,0.00298484]
[1645154454043,0.8914311,2904.9,2904.7,0.83921757]
[1645154454346,1.7524311,2904.9,2904.8,0.83623273]
[1645154454543,2.37260575,2904.9,2904.8,0.00347058]
[1645154454739,2.37260575,2904.9,2904.8,0.83623273]
[1645154454938,2.37260575,2904.9,2904.8,0.00347058]
[1645154455141,2.37260575,2904.9,2904.8,0.83623273]
[1645154455342,2.37265968,2904.9,2904.8,0.83970331]
[1645154455543,2.37267024,2904.9,2904.8,0.00347058]
[1645154455742,2.37267024,2904.9,2904.7,0.00298484]
[1645154455946,0.8914311,2904.9,2904.7,0.00298484]
[1645154456149,0.8914311,2904.9,2904.7,0.83921757]
[1645154456389,0.8914311,2904.9,2904.7,0.00645542]
[1645154456595,0.8914311,2904.9,2904.8,0.83623273]
[1645154456796,0.62033377,2904.9,2904.8,0.83623273]
[1645154456995,0.62033377,2904.9,2904.8,0.00347058]
[1645154457197,0.62033377,2904.9,2904.8,0.83623273]
[1645154457401,0.62033377,2904.9,2904.8,0.00347058]
[1645154457601,0.62033377,2904.9,2904.8,0.83623273]
[1645154457900,1.24086715,2904.9,2904.8,0.83970331]
[1645154458300,0.62033377,2904.9,2904.8,0.83970331]
[1645154459400,0.62033377,2904.9,2904.8,1.70055331]
[1645154459800,0.62033377,2904.9,2904.8,0.83970331]
[1645154461941,0.62033377,2904.9,2904.8,1.70057331]
[1645154462545,3.4,2905.1,2904.8,1.70057331]
[1645154462743,2.22627168,2905.1,2904.9,0.83623273]
[1645154462942,0.65636379,2906.0,2905.0,2.2161]
[1645154463141,0.6106584,2905.9,2905.1,1.93940044]
[1645154463340,0.6106584,2905.9,2905.2,1.33123273]
[1645154463544,0.6106584,2905.9,2905.3,0.83623273]
[1645154463994,0.6106584,2905.9,2905.3,1.69674273]
[1645154464190,0.6106584,2905.9,2905.4,0.83623273]
[1645154464391,3.00229,2906.2,2905.4,0.83623273]
[1645154464392,0.6106584,2905.8,2905.4,0.83623273]
[1645154464592,0.002983,2906.6,2905.2,5.71601]
[1645154464593,0.6106584,2905.7,2905.5,1.33123273]
[1645154464795,0.65636379,2906.4,2905.6,1.33123273]
[1645154464990,0.65636379,2906.4,2905.7,0.83623273]
[1645154465191,0.65636379,2906.4,2905.9,0.86049]
[1645154465391,0.65636379,2906.4,2906.0,0.86051]
[1645154465593,1.26744164,2906.4,2906.1,0.83623273]
[1645154465993,1.26744164,2906.4,2905.3,0.1719]
[1645154466198,0.65636379,2906.1,2905.5,0.85000419]
[1645154466395,2.37821164,2906.0,2905.5,0.85000419]
[1645154466595,0.61107785,2905.9,2905.5,0.85000419]
[1645154467194,0.90609473,2905.8,2905.5,0.85000419]
[1645154467396,0.61107785,2905.7,2905.5,0.85000419]
[1645154469843,4.01107785,2905.7,2905.5,0.85000419]
[1645154470044,0.61107785,2905.6,2905.5,0.85000419]
[1645154471247,0.61107785,2905.6,2905.4,0.2848]
[1645154471248,4.11107785,2905.6,2905.4,0.2848]
[1645154471502,4.11107785,2905.5,2905.4,0.2848]
[1645154471694,4.76744164,2905.5,2905.4,0.2848]
[1645154471895,5.76744164,2905.5,2905.4,0.2848]
[1645154472299,4.15636379,2905.5,2905.4,0.2848]
[1645154472497,5.7673907,2905.5,2905.4,0.2848]
[1645154472698,5.98776086,2905.5,2905.4,0.2848]
[1645154473098,5.11102691,2905.5,2905.4,0.2848]
[1645154473799,6.11665795,2905.5,2905.4,0.2848]
[1645154474001,5.11102691,2905.5,2905.4,0.2848]
[1645154474600,5.98648356,2905.5,2905.4,0.2848]
[1645154474998,5.11102691,2905.5,2905.4,0.2848]
[1645154475642,5.11102691,2905.5,2905.0,0.00298464]
[1645154475843,0.65650365,2905.1,2904.6,0.00347058]
[1645154476042,0.65650365,2905.1,2905.0,0.00298464]
[1645154476244,1.65272361,2905.1,2905.0,0.00298464]
[1645154476450,2.26375052,2905.1,2905.0,0.00298464]
[1645154477049,2.26375052,2905.1,2904.7,0.00347058]